[Event "Titled Tuesday Blitz April 18 Late 2023"]
[White "De Souza, Cristiano Gomes"]
[Black "Mikhalsky, Vladimir"]
[WhiteFideId "2151758"]
[BlackFideId "14144352"]
[WhiteElo "2068"]
[BlackElo "2236"]
[Result "0-1"]
[Round "02"]
[TimeControl "180+2"]
[Date "2023.04.18"]
[WhiteClock "0:00:02"]
[BlackClock "0:00:15"]

1. d4 {[%clk 0:03:00]}  Nf6 {[%clk 0:02:59]} 2. c4 {[%clk 0:02:59]}  g6 {[%clk 0:02:59]} 3. Nf3 {[%clk 0:02:59]}  Bg7 {[%clk 0:03:00]} 4. Nc3 {[%clk 0:03:00]}  O-O {[%clk 0:03:00]} 5. e4 {[%clk 0:02:59]}  d6 {[%clk 0:03:01]} 6. Be2 {[%clk 0:03:00]}  e5 {[%clk 0:03:01]} 7. O-O {[%clk 0:03:00]}  Nc6 {[%clk 0:03:02]} 8. d5 {[%clk 0:03:01]}  Ne7 {[%clk 0:03:02]} 9. Ne1 {[%clk 0:02:59]}  Nd7 {[%clk 0:03:02]} 10. Be3 {[%clk 0:03:00]}  f5 {[%clk 0:03:02]} 11. f3 {[%clk 0:03:00]}  f4 {[%clk 0:03:02]} 12. Bf2 {[%clk 0:03:01]}  g5 {[%clk 0:03:02]} 13. Nb5 {[%clk 0:03:01]}  Nf6 {[%clk 0:02:49]} 14. Nxa7 {[%clk 0:02:58]}  Bd7 {[%clk 0:02:34]} 15. c5 {[%clk 0:02:54]}  Rxa7 {[%clk 0:02:29]} 16. cxd6 {[%clk 0:02:53]}  Nc8 {[%clk 0:02:29]} 17. dxc7 {[%clk 0:02:47]}  Qxc7 {[%clk 0:02:28]} 18. Rc1 {[%clk 0:02:47]}  Qa5 {[%clk 0:02:26]} 19. a3 {[%clk 0:02:39]}  Ra8 {[%clk 0:02:22]} 20. Nd3 {[%clk 0:02:39]}  Re8 {[%clk 0:02:03]} 21. Nc5 {[%clk 0:02:37]}  b6 {[%clk 0:01:47]} 22. Nxd7 {[%clk 0:02:36]}  Nxd7 {[%clk 0:01:47]} 23. d6 {[%clk 0:02:33]}  Bf8 {[%clk 0:01:39]} 24. Rc7 {[%clk 0:02:30]}  Ra7 {[%clk 0:01:32]} 25. Rxa7 {[%clk 0:02:14]}  Nxa7 {[%clk 0:01:25]} 26. b4 {[%clk 0:02:07]}  Qxa3 {[%clk 0:01:20]} 27. Qd5+ {[%clk 0:02:06]}  Kh8 {[%clk 0:01:01]} 28. g3 {[%clk 0:01:59]}  fxg3 {[%clk 0:00:58]} 29. hxg3 {[%clk 0:01:53]}  Qxb4 {[%clk 0:00:58]} 30. Rd1 {[%clk 0:01:49]}  Nc8 {[%clk 0:00:51]} 31. f4 {[%clk 0:01:46]}  Bxd6 {[%clk 0:00:45]} 32. Bg4 {[%clk 0:01:41]}  Nf6 {[%clk 0:00:43]} 33. Qf7 {[%clk 0:01:33]}  Rf8 {[%clk 0:00:43]} 34. Qe6 {[%clk 0:01:31]}  Nxg4 {[%clk 0:00:43]} 35. Qxg4 {[%clk 0:01:28]}  exf4 {[%clk 0:00:38]} 36. Bd4+ {[%clk 0:01:27]}  Qxd4+ {[%clk 0:00:32]} 37. Rxd4 {[%clk 0:01:26]}  Bc5 {[%clk 0:00:32]} 38. gxf4 {[%clk 0:01:17]}  Bxd4+ {[%clk 0:00:32]} 39. Kg2 {[%clk 0:01:15]}  gxf4 {[%clk 0:00:32]} 40. Kf3 {[%clk 0:01:14]}  Bg7 {[%clk 0:00:30]} 41. Qe6 {[%clk 0:01:09]}  b5 {[%clk 0:00:28]} 42. e5 {[%clk 0:01:02]}  b4 {[%clk 0:00:27]} 43. Qc4 {[%clk 0:01:00]}  Bxe5 {[%clk 0:00:24]} 44. Qxb4 {[%clk 0:01:00]}  Bg7 {[%clk 0:00:24]} 45. Qb7 {[%clk 0:00:57]}  Nd6 {[%clk 0:00:24]} 46. Qd5 {[%clk 0:00:56]}  Nf5 {[%clk 0:00:23]} 47. Qc5 {[%clk 0:00:51]}  Nd4+ {[%clk 0:00:22]} 48. Kf2 {[%clk 0:00:41]}  f3 {[%clk 0:00:22]} 49. Qd5 {[%clk 0:00:35]}  h6 {[%clk 0:00:22]} 50. Qe4 {[%clk 0:00:33]}  Rb8 {[%clk 0:00:21]} 51. Kg3 {[%clk 0:00:27]}  Rf8 {[%clk 0:00:19]} 52. Kf2 {[%clk 0:00:27]}  Nf5 {[%clk 0:00:19]} 53. Qf4 {[%clk 0:00:19]}  Ne7 {[%clk 0:00:17]} 54. Qh4 {[%clk 0:00:16]}  Rf7 {[%clk 0:00:16]} 55. Qh5 {[%clk 0:00:15]}  Kg8 {[%clk 0:00:16]} 56. Qb5 {[%clk 0:00:13]}  Ng6 {[%clk 0:00:16]} 57. Qe8+ {[%clk 0:00:12]}  Bf8 {[%clk 0:00:14]} 58. Qe6 {[%clk 0:00:11]}  Kg7 {[%clk 0:00:15]} 59. Qd5 {[%clk 0:00:09]}  Be7 {[%clk 0:00:15]} 60. Qd4+ {[%clk 0:00:08]}  Bf6 {[%clk 0:00:15]} 61. Qd5 {[%clk 0:00:08]}  Ne5 {[%clk 0:00:15]} 62. Qe4 {[%clk 0:00:03]}  h5 {[%clk 0:00:16]} 63. Kg3 {[%clk 0:00:02]}  Ng4 {[%clk 0:00:15]} 0-1


[Site "https://www.chess.com"]

[Event "Titled Tuesday Blitz April 18 Late 2023"]
[White "Miszler, Levente"]
[Black "Antonio, Jorge Carlos"]
[WhiteFideId "763276"]
[BlackFideId "113190"]
[WhiteElo "2176"]
[BlackElo "2247"]
[Result "1-0"]
[Round "02"]
[TimeControl "180+2"]
[Date "2023.04.18"]
[WhiteClock "0:00:16"]
[BlackClock "0:00:18"]

1. e4 {[%clk 0:03:00]}  c5 {[%clk 0:02:59]} 2. Nf3 {[%clk 0:02:59]}  e6 {[%clk 0:02:37]} 3. d4 {[%clk 0:02:57]}  cxd4 {[%clk 0:02:35]} 4. Nxd4 {[%clk 0:02:58]}  a6 {[%clk 0:02:34]} 5. c4 {[%clk 0:02:55]}  Nc6 {[%clk 0:02:34]} 6. Be3 {[%clk 0:02:50]}  Nf6 {[%clk 0:02:33]} 7. Nc3 {[%clk 0:02:49]}  Bb4 {[%clk 0:02:27]} 8. Nxc6 {[%clk 0:02:43]}  bxc6 {[%clk 0:02:24]} 9. Qc2 {[%clk 0:02:43]}  O-O {[%clk 0:02:20]} 10. Bd3 {[%clk 0:02:42]}  Ng4 {[%clk 0:02:16]} 11. Bd2 {[%clk 0:02:37]}  Bc5 {[%clk 0:02:11]} 12. O-O {[%clk 0:02:31]}  Qh4 {[%clk 0:02:08]} 13. h3 {[%clk 0:02:22]}  Nxf2 {[%clk 0:02:04]} 14. Rxf2 {[%clk 0:01:59]}  Qxf2+ {[%clk 0:01:59]} 15. Kh1 {[%clk 0:01:58]}  Bd6 {[%clk 0:01:53]} 16. Ne2 {[%clk 0:01:10]}  Qh4 {[%clk 0:01:38]} 17. Rf1 {[%clk 0:01:05]}  Bc5 {[%clk 0:01:28]} 18. b4 {[%clk 0:00:57]}  Bd6 {[%clk 0:01:22]} 19. c5 {[%clk 0:00:56]}  Bc7 {[%clk 0:01:19]} 20. Nf4 {[%clk 0:00:44]}  e5 {[%clk 0:01:13]} 21. Ne2 {[%clk 0:00:40]}  d5 {[%clk 0:01:12]} 22. cxd6 {[%clk 0:00:39]}  Bxd6 {[%clk 0:01:08]} 23. Ng1 {[%clk 0:00:31]}  Bd7 {[%clk 0:00:59]} 24. Nf3 {[%clk 0:00:30]}  Qe7 {[%clk 0:00:54]} 25. Qb3 {[%clk 0:00:26]}  Be6 {[%clk 0:00:52]} 26. Bc4 {[%clk 0:00:24]}  Bxc4 {[%clk 0:00:50]} 27. Qxc4 {[%clk 0:00:25]}  Qe6 {[%clk 0:00:44]} 28. Qxc6 {[%clk 0:00:24]}  Rfc8 {[%clk 0:00:41]} 29. Qa4 {[%clk 0:00:23]}  f5 {[%clk 0:00:33]} 30. Ng5 {[%clk 0:00:21]}  Qe8 {[%clk 0:00:26]} 31. Qb3+ {[%clk 0:00:20]}  Kh8 {[%clk 0:00:24]} 32. Nf7+ {[%clk 0:00:20]}  Kg8 {[%clk 0:00:20]} 33. Nxd6+ {[%clk 0:00:19]}  Kf8 {[%clk 0:00:18]} 34. Nxe8 {[%clk 0:00:19]}  Rxe8 {[%clk 0:00:18]} 35. Rxf5+ {[%clk 0:00:19]}  Ke7 {[%clk 0:00:17]} 36. Rf7+ {[%clk 0:00:17]}  Kd8 {[%clk 0:00:18]} 37. Qd5+ {[%clk 0:00:16]} 1-0


[Site "https://www.chess.com"]

[Event "Titled Tuesday Blitz April 18 Late 2023"]
[White "Shubenkova, Veronika"]
[Black "Estremera Panos, Sergio"]
[WhiteFideId "44124040"]
[BlackFideId "2200864"]
[WhiteElo "2027"]
[BlackElo "2253"]
[Result "1-0"]
[Round "02"]
[TimeControl "180+2"]
[Date "2023.04.18"]
[WhiteClock "0:00:54"]
[BlackClock "0:01:10"]

1. e4 {[%clk 0:03:00]}  c5 {[%clk 0:03:00]} 2. Nc3 {[%clk 0:03:00]}  Nc6 {[%clk 0:02:59]} 3. g3 {[%clk 0:03:00]}  g6 {[%clk 0:02:59]} 4. Bg2 {[%clk 0:03:01]}  Bg7 {[%clk 0:02:59]} 5. d3 {[%clk 0:03:01]}  e6 {[%clk 0:02:59]} 6. f4 {[%clk 0:03:01]}  d6 {[%clk 0:02:59]} 7. Nf3 {[%clk 0:03:01]}  Nge7 {[%clk 0:03:00]} 8. O-O {[%clk 0:03:01]}  O-O {[%clk 0:02:59]} 9. Rb1 {[%clk 0:03:00]}  Rb8 {[%clk 0:02:58]} 10. Be3 {[%clk 0:03:00]}  b5 {[%clk 0:02:58]} 11. Ne2 {[%clk 0:02:59]}  b4 {[%clk 0:02:57]} 12. g4 {[%clk 0:02:58]}  f5 {[%clk 0:02:56]} 13. gxf5 {[%clk 0:02:56]}  exf5 {[%clk 0:02:55]} 14. Ng3 {[%clk 0:02:56]}  Qc7 {[%clk 0:02:39]} 15. h4 {[%clk 0:02:54]}  Be6 {[%clk 0:02:31]} 16. b3 {[%clk 0:02:49]}  fxe4 {[%clk 0:02:30]} 17. dxe4 {[%clk 0:02:46]}  Bg4 {[%clk 0:02:30]} 18. Qd2 {[%clk 0:02:41]}  Rbd8 {[%clk 0:02:27]} 19. Ng5 {[%clk 0:02:39]}  Nd4 {[%clk 0:02:23]} 20. f5 {[%clk 0:02:35]}  gxf5 {[%clk 0:02:21]} 21. exf5 {[%clk 0:02:34]}  Nexf5 {[%clk 0:02:21]} 22. Nxf5 {[%clk 0:02:34]}  Bxf5 {[%clk 0:02:18]} 23. Bd5+ {[%clk 0:02:14]}  Kh8 {[%clk 0:02:14]} 24. Bxd4 {[%clk 0:02:11]}  Bxd4+ {[%clk 0:02:14]} 25. Kh2 {[%clk 0:02:10]}  Qg7 {[%clk 0:02:10]} 26. Qg2 {[%clk 0:01:32]}  h6 {[%clk 0:02:00]} 27. Nf7+ {[%clk 0:01:25]}  Rxf7 {[%clk 0:02:00]} 28. Qxg7+ {[%clk 0:01:14]}  Rxg7 {[%clk 0:01:38]} 29. Rxf5 {[%clk 0:01:13]}  Re8 {[%clk 0:01:37]} 30. Rbf1 {[%clk 0:01:12]}  Re2+ {[%clk 0:01:36]} 31. Kh1 {[%clk 0:01:11]}  Be5 {[%clk 0:01:30]} 32. R5f2 {[%clk 0:01:04]}  Rxf2 {[%clk 0:01:14]} 33. Rxf2 {[%clk 0:01:04]}  Rg3 {[%clk 0:01:14]} 34. Rf8+ {[%clk 0:01:01]}  Kg7 {[%clk 0:01:13]} 35. Rf7+ {[%clk 0:00:59]}  Kg6 {[%clk 0:01:11]} 36. Rxa7 {[%clk 0:00:55]}  Rh3+ {[%clk 0:01:09]} 37. Kg2 {[%clk 0:00:54]}  Rh2+ {[%clk 0:01:09]} 38. Kf3 {[%clk 0:00:54]}  Rxc2 {[%clk 0:01:10]} 39. Be4+ {[%clk 0:00:54]} 1-0


[Site "https://www.chess.com"]

[Event "Titled Tuesday Blitz April 18 Late 2023"]
[White "Manukyan, Artyom"]
[Black "Harish, Neeraj"]
[WhiteFideId "13305786"]
[BlackFideId "30958130"]
[WhiteElo "2078"]
[BlackElo "1965"]
[Result "1/2-1/2"]
[Round "02"]
[TimeControl "180+2"]
[Date "2023.04.18"]
[WhiteClock "0:00:06"]
[BlackClock "0:00:02"]

1. e4 {[%clk 0:02:55]}  e5 {[%clk 0:02:58]} 2. Nf3 {[%clk 0:02:54]}  Nc6 {[%clk 0:02:58]} 3. Bc4 {[%clk 0:02:54]}  Nf6 {[%clk 0:02:57]} 4. d4 {[%clk 0:02:52]}  exd4 {[%clk 0:02:56]} 5. O-O {[%clk 0:02:51]}  Nxe4 {[%clk 0:02:56]} 6. Re1 {[%clk 0:02:52]}  d5 {[%clk 0:02:56]} 7. Bxd5 {[%clk 0:02:52]}  Qxd5 {[%clk 0:02:57]} 8. Nc3 {[%clk 0:02:53]}  Qh5 {[%clk 0:02:58]} 9. Nxe4 {[%clk 0:02:54]}  Be6 {[%clk 0:02:57]} 10. Neg5 {[%clk 0:02:54]}  O-O-O {[%clk 0:02:56]} 11. Nxe6 {[%clk 0:02:53]}  fxe6 {[%clk 0:02:57]} 12. Rxe6 {[%clk 0:02:53]}  Bd6 {[%clk 0:02:57]} 13. Qe2 {[%clk 0:02:50]}  Rhf8 {[%clk 0:02:39]} 14. h3 {[%clk 0:02:38]}  Rde8 {[%clk 0:02:11]} 15. Bd2 {[%clk 0:02:31]}  Ne5 {[%clk 0:01:48]} 16. Rxe8+ {[%clk 0:02:14]}  Rxe8 {[%clk 0:01:48]} 17. Nxd4 {[%clk 0:01:52]}  Qxe2 {[%clk 0:01:45]} 18. Nxe2 {[%clk 0:01:53]}  Nf3+ {[%clk 0:01:45]} 19. gxf3 {[%clk 0:01:51]}  Rxe2 {[%clk 0:01:45]} 20. Bc3 {[%clk 0:01:14]}  Bc5 {[%clk 0:01:35]} 21. Rf1 {[%clk 0:01:09]}  g6 {[%clk 0:01:28]} 22. Kg2 {[%clk 0:01:09]}  Rxc2 {[%clk 0:01:28]} 23. Kg3 {[%clk 0:01:10]}  b5 {[%clk 0:01:12]} 24. Kg4 {[%clk 0:01:06]}  Bxf2 {[%clk 0:00:59]} 25. Kg5 {[%clk 0:00:55]}  Be3+ {[%clk 0:00:58]} 26. Kf6 {[%clk 0:00:55]}  Rh2 {[%clk 0:00:51]} 27. Re1 {[%clk 0:00:49]}  Bb6 {[%clk 0:00:48]} 28. f4 {[%clk 0:00:42]}  Rxh3 {[%clk 0:00:47]} 29. a3 {[%clk 0:00:32]}  Rf3 {[%clk 0:00:23]} 30. Be5 {[%clk 0:00:29]}  Bc5 {[%clk 0:00:20]} 31. Rh1 {[%clk 0:00:28]}  Bd6 {[%clk 0:00:20]} 32. Rxh7 {[%clk 0:00:24]}  Bxe5+ {[%clk 0:00:20]} 33. Kxe5 {[%clk 0:00:25]}  Rf2 {[%clk 0:00:20]} 34. Rg7 {[%clk 0:00:25]}  Re2+ {[%clk 0:00:20]} 35. Kf6 {[%clk 0:00:23]}  Rf2 {[%clk 0:00:20]} 36. Ke5 {[%clk 0:00:22]}  Re2+ {[%clk 0:00:20]} 37. Kd4 {[%clk 0:00:18]}  Rxb2 {[%clk 0:00:20]} 38. Rxg6 {[%clk 0:00:17]}  Rf2 {[%clk 0:00:19]} 39. Ke3 {[%clk 0:00:16]}  Rf1 {[%clk 0:00:20]} 40. f5 {[%clk 0:00:17]}  Rxf5 {[%clk 0:00:17]} 41. Ke4 {[%clk 0:00:17]}  Rf1 {[%clk 0:00:17]} 42. Rg3 {[%clk 0:00:16]}  Kb7 {[%clk 0:00:17]} 43. Kd5 {[%clk 0:00:17]}  Kb6 {[%clk 0:00:17]} 44. Rg6+ {[%clk 0:00:17]}  Kb7 {[%clk 0:00:17]} 45. Kc5 {[%clk 0:00:16]}  a6 {[%clk 0:00:17]} 46. Kb4 {[%clk 0:00:16]}  Rf3 {[%clk 0:00:17]} 47. Rh6 {[%clk 0:00:15]}  Rf4+ {[%clk 0:00:17]} 48. Kb3 {[%clk 0:00:14]}  Ra4 {[%clk 0:00:18]} 49. Rg6 {[%clk 0:00:14]}  c5 {[%clk 0:00:18]} 50. Rh6 {[%clk 0:00:13]}  a5 {[%clk 0:00:17]} 51. Rg6 {[%clk 0:00:13]}  Rf4 {[%clk 0:00:15]} 52. Rh6 {[%clk 0:00:13]}  a4+ {[%clk 0:00:14]} 53. Kb2 {[%clk 0:00:13]}  b4 {[%clk 0:00:15]} 54. Rh5 {[%clk 0:00:13]}  bxa3+ {[%clk 0:00:13]} 55. Kxa3 {[%clk 0:00:13]}  Kb6 {[%clk 0:00:13]} 56. Rh8 {[%clk 0:00:11]}  Kb5 {[%clk 0:00:12]} 57. Rc8 {[%clk 0:00:07]}  Rf3+ {[%clk 0:00:11]} 58. Kb2 {[%clk 0:00:07]}  Kc4 {[%clk 0:00:11]} 59. Ra8 {[%clk 0:00:07]}  Kb4 {[%clk 0:00:10]} 60. Rb8+ {[%clk 0:00:07]}  Kc4 {[%clk 0:00:11]} 61. Ra8 {[%clk 0:00:07]}  a3+ {[%clk 0:00:08]} 62. Ka2 {[%clk 0:00:06]}  Kb4 {[%clk 0:00:03]} 63. Rb8+ {[%clk 0:00:06]}  Kc4 {[%clk 0:00:04]} 64. Ra8 {[%clk 0:00:07]}  Kd4 {[%clk 0:00:05]} 65. Rd8+ {[%clk 0:00:06]}  Kc3 {[%clk 0:00:05]} 66. Kxa3 {[%clk 0:00:06]}  c4 {[%clk 0:00:06]} 67. Rc8 {[%clk 0:00:06]}  Kd3 {[%clk 0:00:06]} 68. Kb2 {[%clk 0:00:06]}  Rf2+ {[%clk 0:00:06]} 69. Kc1 {[%clk 0:00:02]}  Kc3 {[%clk 0:00:06]} 70. Kb1 {[%clk 0:00:02]}  Rf1+ {[%clk 0:00:06]} 71. Ka2 {[%clk 0:00:02]}  Rc1 {[%clk 0:00:06]} 72. Rc7 {[%clk 0:00:01]}  Kd3 {[%clk 0:00:06]} 73. Rh7 {[%clk 0:00:01]}  Kc2 {[%clk 0:00:06]} 74. Rh2+ {[%clk 0:00:02]}  Kc3 {[%clk 0:00:06]} 75. Rh3+ {[%clk 0:00:02]}  Kb4 {[%clk 0:00:06]} 76. Rh8 {[%clk 0:00:03]}  Rg1 {[%clk 0:00:06]} 77. Rb8+ {[%clk 0:00:03]}  Kc3 {[%clk 0:00:06]} 78. Rh8 {[%clk 0:00:03]}  Rg2+ {[%clk 0:00:06]} 79. Ka3 {[%clk 0:00:03]}  Rg1 {[%clk 0:00:07]} 80. Rh3+ {[%clk 0:00:03]}  Kd4 {[%clk 0:00:07]} 81. Rh4+ {[%clk 0:00:02]}  Kd3 {[%clk 0:00:07]} 82. Rh3+ {[%clk 0:00:03]}  Ke2 {[%clk 0:00:05]} 83. Rh2+ {[%clk 0:00:03]}  Kf3 {[%clk 0:00:05]} 84. Rh3+ {[%clk 0:00:03]}  Kg4 {[%clk 0:00:04]} 85. Rc3 {[%clk 0:00:04]}  Kf5 {[%clk 0:00:03]} 86. Kb4 {[%clk 0:00:04]}  Rg4 {[%clk 0:00:02]} 87. Rxc4 {[%clk 0:00:05]}  Rxc4+ {[%clk 0:00:02]} 88. Kxc4 {[%clk 0:00:06]} 1/2-1/2


[Site "https://www.chess.com"]

[Event "Titled Tuesday Blitz April 18 Late 2023"]
[White "Da Silva Junior, Sediney Mari"]
[Black "Kovalevsky, Stanislav"]
[WhiteFideId "2132079"]
[BlackFideId "13508598"]
[WhiteElo "1977"]
[BlackElo "2174"]
[Result "1-0"]
[Round "02"]
[TimeControl "180+2"]
[Date "2023.04.18"]
[WhiteClock "0:02:26"]
[BlackClock "0:01:30"]

1. e4 {[%clk 0:03:00]}  e6 {[%clk 0:03:00]} 2. Nf3 {[%clk 0:03:01]}  d5 {[%clk 0:03:01]} 3. e5 {[%clk 0:03:01]}  c5 {[%clk 0:03:01]} 4. b4 {[%clk 0:03:00]}  cxb4 {[%clk 0:02:59]} 5. a3 {[%clk 0:03:00]}  f6 {[%clk 0:02:59]} 6. d4 {[%clk 0:02:53]}  Nc6 {[%clk 0:02:58]} 7. Bb5 {[%clk 0:02:51]}  fxe5 {[%clk 0:02:57]} 8. Nxe5 {[%clk 0:02:50]}  Bd7 {[%clk 0:02:57]} 9. Qh5+ {[%clk 0:02:48]}  g6 {[%clk 0:02:54]} 10. Nxg6 {[%clk 0:02:48]}  Nf6 {[%clk 0:02:55]} 11. Qh4 {[%clk 0:02:44]}  hxg6 {[%clk 0:02:00]} 12. Qxh8 {[%clk 0:02:43]}  Nxd4 {[%clk 0:02:00]} 13. Bd3 {[%clk 0:02:40]}  Qe7 {[%clk 0:01:43]} 14. Bxg6+ {[%clk 0:02:30]}  Kd8 {[%clk 0:01:43]} 15. Bg5 {[%clk 0:02:31]}  Qc5 {[%clk 0:01:32]} 16. Bxf6+ {[%clk 0:02:27]}  Kc7 {[%clk 0:01:32]} 17. Bxd4 {[%clk 0:02:26]}  Qxc2 {[%clk 0:01:30]} 1-0


[Site "https://www.chess.com"]

[Event "Titled Tuesday Blitz April 18 Late 2023"]
[White "QuiesPrecatio"]
[Black "Romero Ruscalleda, Josep"]
[BlackFideId "2231859"]
[WhiteElo "2449"]
[BlackElo "2183"]
[Result "1-0"]
[Round "02"]
[TimeControl "180+2"]
[Date "2023.04.18"]
[WhiteClock "0:00:47"]
[BlackClock "0:00:42"]

1. d4 {[%clk 0:02:51]}  g6 {[%clk 0:03:00]} 2. Nf3 {[%clk 0:02:50]}  Bg7 {[%clk 0:03:01]} 3. e4 {[%clk 0:02:51]}  d6 {[%clk 0:03:01]} 4. Bc4 {[%clk 0:02:51]}  Nf6 {[%clk 0:03:00]} 5. Qe2 {[%clk 0:02:50]}  O-O {[%clk 0:03:00]} 6. h3 {[%clk 0:02:50]}  c6 {[%clk 0:02:59]} 7. c3 {[%clk 0:02:49]}  Nxe4 {[%clk 0:02:55]} 8. Qxe4 {[%clk 0:02:45]}  d5 {[%clk 0:02:55]} 9. Bxd5 {[%clk 0:02:45]}  cxd5 {[%clk 0:02:54]} 10. Qe2 {[%clk 0:02:45]}  b6 {[%clk 0:02:53]} 11. b4 {[%clk 0:02:38]}  Qc7 {[%clk 0:02:34]} 12. O-O {[%clk 0:02:31]}  Re8 {[%clk 0:02:24]} 13. a4 {[%clk 0:02:20]}  Bf5 {[%clk 0:02:23]} 14. Bd2 {[%clk 0:02:12]}  Nd7 {[%clk 0:02:16]} 15. Na3 {[%clk 0:02:09]}  a6 {[%clk 0:02:14]} 16. Rac1 {[%clk 0:02:00]}  Nf6 {[%clk 0:02:13]} 17. c4 {[%clk 0:01:48]}  dxc4 {[%clk 0:02:12]} 18. Nxc4 {[%clk 0:01:49]}  Nd5 {[%clk 0:01:57]} 19. Nce5 {[%clk 0:01:48]}  Qd6 {[%clk 0:01:53]} 20. Rc6 {[%clk 0:01:47]}  Qd8 {[%clk 0:01:51]} 21. Rfc1 {[%clk 0:01:45]}  Rc8 {[%clk 0:01:40]} 22. Qxa6 {[%clk 0:01:33]}  Rxc6 {[%clk 0:01:39]} 23. Nxc6 {[%clk 0:01:33]}  Qd6 {[%clk 0:01:32]} 24. Nce5 {[%clk 0:01:30]}  Nxb4 {[%clk 0:01:26]} 25. Qb5 {[%clk 0:01:29]}  Rd8 {[%clk 0:01:00]} 26. Qxb4 {[%clk 0:01:24]}  Qd5 {[%clk 0:01:00]} 27. Qxb6 {[%clk 0:01:17]}  f6 {[%clk 0:00:57]} 28. Nc6 {[%clk 0:01:11]}  Rd7 {[%clk 0:00:56]} 29. a5 {[%clk 0:01:02]}  Bxh3 {[%clk 0:00:53]} 30. a6 {[%clk 0:00:52]}  Bg4 {[%clk 0:00:44]} 31. a7 {[%clk 0:00:52]}  Bxf3 {[%clk 0:00:43]} 32. a8=Q+ {[%clk 0:00:51]}  Kf7 {[%clk 0:00:43]} 33. Nd8+ {[%clk 0:00:47]}  Rxd8 {[%clk 0:00:42]} 34. Qaxd8 {[%clk 0:00:47]} 1-0


[Site "https://www.chess.com"]

[Event "Titled Tuesday Blitz April 18 Late 2023"]
[White "BebeBonito2022"]
[Black "Sprenar, Petr"]
[BlackFideId "397164"]
[WhiteElo "2218"]
[BlackElo "2182"]
[Result "0-1"]
[Round "02"]
[TimeControl "180+2"]
[Date "2023.04.18"]
[WhiteClock "0:00:07"]
[BlackClock "0:01:05"]

1. d4 {[%clk 0:03:00]}  d5 {[%clk 0:02:58]} 2. c4 {[%clk 0:03:00]}  e6 {[%clk 0:02:58]} 3. Nc3 {[%clk 0:03:00]}  Bb4 {[%clk 0:02:58]} 4. a3 {[%clk 0:02:59]}  Bxc3+ {[%clk 0:02:57]} 5. bxc3 {[%clk 0:03:00]}  Nf6 {[%clk 0:02:58]} 6. e3 {[%clk 0:02:55]}  O-O {[%clk 0:02:56]} 7. Bd3 {[%clk 0:02:55]}  c6 {[%clk 0:02:55]} 8. Ne2 {[%clk 0:02:44]}  b6 {[%clk 0:02:54]} 9. O-O {[%clk 0:02:27]}  Ba6 {[%clk 0:02:50]} 10. cxd5 {[%clk 0:02:27]}  cxd5 {[%clk 0:02:43]} 11. Bb2 {[%clk 0:02:09]}  Qc8 {[%clk 0:02:38]} 12. Rc1 {[%clk 0:02:01]}  Bc4 {[%clk 0:02:33]} 13. f3 {[%clk 0:01:49]}  Qa6 {[%clk 0:02:31]} 14. Nf4 {[%clk 0:01:44]}  Nc6 {[%clk 0:02:26]} 15. Rf2 {[%clk 0:01:35]}  Bxd3 {[%clk 0:02:22]} 16. Nxd3 {[%clk 0:01:23]}  Rfe8 {[%clk 0:02:20]} 17. Nb4 {[%clk 0:01:17]}  Nxb4 {[%clk 0:02:13]} 18. cxb4 {[%clk 0:01:17]}  Rac8 {[%clk 0:02:12]} 19. Rfc2 {[%clk 0:01:17]}  b5 {[%clk 0:01:56]} 20. Rc7 {[%clk 0:01:12]}  h5 {[%clk 0:01:52]} 21. Qc2 {[%clk 0:01:07]}  Rxc7 {[%clk 0:01:49]} 22. Qxc7 {[%clk 0:01:08]}  Qa4 {[%clk 0:01:42]} 23. h4 {[%clk 0:00:50]}  Qb3 {[%clk 0:01:24]} 24. Qc3 {[%clk 0:00:43]}  Qxc3 {[%clk 0:01:16]} 25. Rxc3 {[%clk 0:00:44]}  Re7 {[%clk 0:01:16]} 26. Rc8+ {[%clk 0:00:37]}  Kh7 {[%clk 0:01:16]} 27. Bc1 {[%clk 0:00:31]}  Rb7 {[%clk 0:01:07]} 28. Bd2 {[%clk 0:00:20]}  Nd7 {[%clk 0:01:06]} 29. Be1 {[%clk 0:00:07]}  Nb6 {[%clk 0:01:06]} 30. Bg3 {[%clk 0:00:07]}  Nc4 {[%clk 0:01:05]} 0-1


[Site "https://www.chess.com"]

[Event "Titled Tuesday Blitz April 18 Late 2023"]
[White "Osmonbekov, Talaibek"]
[Black "Golubev, Mikhail"]
[WhiteFideId "2017253"]
[BlackFideId "14100983"]
[WhiteElo "2135"]
[BlackElo "2374"]
[Result "1-0"]
[Round "02"]
[TimeControl "180+2"]
[Date "2023.04.18"]
[WhiteClock "0:00:25"]
[BlackClock "0:00:01"]

1. d4 {[%clk 0:03:00]}  Nf6 {[%clk 0:02:59]} 2. Bf4 {[%clk 0:03:00]}  d6 {[%clk 0:02:58]} 3. Nc3 {[%clk 0:03:00]}  Nbd7 {[%clk 0:02:58]} 4. Nf3 {[%clk 0:03:00]}  c5 {[%clk 0:02:57]} 5. e3 {[%clk 0:02:56]}  cxd4 {[%clk 0:02:56]} 6. exd4 {[%clk 0:02:56]}  g6 {[%clk 0:02:55]} 7. Bc4 {[%clk 0:02:53]}  Bg7 {[%clk 0:02:52]} 8. O-O {[%clk 0:02:48]}  O-O {[%clk 0:02:51]} 9. Re1 {[%clk 0:02:48]}  Nb6 {[%clk 0:02:46]} 10. Bb3 {[%clk 0:02:48]}  Bd7 {[%clk 0:01:45]} 11. a4 {[%clk 0:02:47]}  d5 {[%clk 0:01:24]} 12. Qe2 {[%clk 0:02:44]}  e6 {[%clk 0:00:47]} 13. a5 {[%clk 0:02:42]}  Nc8 {[%clk 0:00:47]} 14. Ne5 {[%clk 0:02:30]}  Ne7 {[%clk 0:00:44]} 15. Qd2 {[%clk 0:02:09]}  Nc6 {[%clk 0:00:40]} 16. Bg5 {[%clk 0:01:57]}  Qc7 {[%clk 0:00:10]} 17. Nb5 {[%clk 0:01:50]}  Qc8 {[%clk 0:00:04]} 18. Nd6 {[%clk 0:01:19]}  Qc7 {[%clk 0:00:03]} 19. Nb5 {[%clk 0:01:18]}  Qc8 {[%clk 0:00:03]} 20. Nc3 {[%clk 0:01:10]}  Qc7 {[%clk 0:00:02]} 21. a6 {[%clk 0:00:36]}  bxa6 {[%clk 0:00:01]} 22. Rxa6 {[%clk 0:00:36]}  Qb7 {[%clk 0:00:01]} 23. Ra3 {[%clk 0:00:31]}  Rfc8 {[%clk 0:00:01]} 24. Qf4 {[%clk 0:00:25]} 1-0


[Site "https://www.chess.com"]